Cogmind - Beta 13 X1 @@@ ROGUE MODE // 2023.11.14 @ 19:33:41 Player: Plexion Result: Destroyed by as-80548 with Assembled Blade Performance ------------- Evolutions (0) 0 Regions Visited (4) 800 Robots Destroyed (3) 15 Value Destroyed (31) 31 Prototype IDs (23) 460 Alien Tech Used (0) 0 Bonus (262) 262 TOTAL SCORE: 1568 Bonus ------- Aligned with FarCom 300 Friendly Fire -38 Cogmind --------- Core Integrity 0/250 Matter 260/300 Energy 99/100 System Corruption 0% Temperature Cool (0) Movement Treading (240) Ox1 Location -9/Mines Parts ------- > --- POWER (1) -------- (None) > --- PROPULSION (2) --- Light Treads > --- UTILITY (2) ------ Large Storage Unit > --- WEAPON (2) ------- Light Assault Rifle > --- INVENTORY (15) --- Light Ion Engine Fission Core Flying Fortress v7 Huge Storage Unit Cloak of Protection Hacking Suite Improved Trap Extractor (0/6) Medium Laser AWS/Thermal Peak State ------------ > --- POWER ------------ Light Ion Engine > --- PROPULSION ------- Light Treads Light Treads > --- UTILITY ---------- Large Storage Unit Huge Storage Unit > --- WEAPON ----------- Small Laser Light Assault Rifle > --- INVENTORY -------- Light Ion Engine Flying Fortress v7 Small Storage Unit Cloak of Protection Hacking Suite Medium Laser AWS/Thermal [Rating: 13] Favorites ----------- Power Light Ion Engine Engine Light Ion Engine Propulsion Light Treads Treads Light Treads Utility Small Storage Unit Storage Small Storage Unit Weapon Light Assault Rifle Energy Gun Small Laser Ballistic Gun Light Assault Rifle Build | -11 -10 -10 -10 -9 ------- Run | Jun Mat Min Exi Min Slots Evolved . | . . . . . Power . | . . . . . Propulsion . | . . . . . Utility . | . . . . . Weapon . | . . . . . Parts Attached 12 | 6 . 3 3 . Power 2 | 1 . 1 . . Engine 2 | 1 . 1 . . Core . | . . . . . Reactor . | . . . . . Propulsion 5 | 2 . 2 1 . Treads 5 | 2 . 2 1 . Leg . | . . . . . Wheel . | . . . . . Hover . | . . . . . Flight . | . . . . . Utility 3 | 1 . . 2 . Device . | . . . . . Storage 3 | 1 . . 2 . Processor . | . . . . . Hackware . | . . . . . Protection . | . . . . . Artifact . | . . . . . Weapon 2 | 2 . . . . Energy Gun 1 | 1 . . . . Energy Cannon . | . . . . . Ballistic Gun 1 | 1 . . . . Ballistic Cannon . | . . . . . Launcher . | . . . . . Special Weapon . | . . . . . Impact Weapon . | . . . . . Slashing Weapon . | . . . . . Piercing Weapon . | . . . . . Special Melee Weapon . | . . . . . Unidentified Prototypes . | . . . . . Parts Lost 4 | . . 1 . 3 Power 1 | . . . . 1 Propulsion 2 | . . 1 . 1 Utility . | . . . . . Weapon 1 | . . . . 1 Highest Loss Streak 3 | . . 1 . 3 To Critical Strikes . | . . . . . Average Slot Usage (%) 82 | . 85 84 80 85 Engine 14 | . 14 14 14 14 Treads 25 | . 28 27 23 28 Storage 14 | . 14 14 14 14 Energy Gun 14 | . 14 14 14 14 Ballistic Gun 14 | . 14 14 14 14 Naked Turns . | . . . . . Heaviest Build 85 | 10 10 10 85 25 Greatest Support 40 | 40 40 40 40 40 Greatest Overweight (x) 2 | . . . 2 . Average Overweight (x) . | . . . . . Largest Inventory Capacity 25 | 8 8 8 25 15 Average Capacity 13 | 6 8 8 16 15 Most Carried 15 | 2 4 6 15 15 Average Carried 9 | 1 3 4 10 14 Final Capacity 15 | 8 8 8 15 15 Final Carried 14 | 2 4 6 14 13 Class Distribution -------------------- 100% | Mutant Dominant Class ---------------- Mutant | -10/Materials Mutant | -10/Mines Mutant | -10/Exiles Mutant | -9/Mines Resources | -11 -10 -10 -10 -9 ----------- Run | Jun Mat Min Exi Min Matter Collected 317 | 221 14 82 . . Remotely . | . . . . . Salvage Created 173 | . 14 159 . . Parts 6 | . 2 4 . . Haulers Intercepted . | . . . . . Recyclers Shooed . | . . . . . Parts Field Recycled . | . . . . . Retrieved Matter . | . . . . . Parts Self-Destructed . | . . . . . Prevented . | . . . . . Kills | -11 -10 -10 -10 -9 ------- Run | Jun Mat Min Exi Min Combat Hostiles Destroyed 10 | . . 10 . . Guns 10 | . . 10 . . Classes Destroyed 4 | . 1 3 . . Builder 1 | . . 1 . . Operator 1 | . 1 . . . Swarmer 1 | . . 1 . . Assembled 9 | . . 9 . . Best Kill Streak 3 | . 1 3 . . Combat Bots Only 2 | . . 2 . . Max Kills in Single Turn 1 | . 1 1 . . Gunslinging . | . . . . . Exploded . | . . . . . Melee . | . . . . . Uniques/NPCs Destroyed . | . . . . . Combat | -11 -10 -10 -10 -9 -------- Run | Jun Mat Min Exi Min Damage Taken 736 | . . 659 . 77 Core 282 | . . 241 . 41 Absorbed by Shields . | . . . . . Core Remaining (%) 100 | 100 . . . . Volleys Fired 57 | . 4 50 . 3 Largest 2 | . 2 2 . 2 Hottest 60 | . 60 60 . 60 Shots Fired 112 | . 8 99 . 5 Gun 112 | . 8 99 . 5 Cannon . | . . . . . Launcher . | . . . . . Special . | . . . . . Kinetic 57 | . 4 50 . 3 Thermal 55 | . 4 49 . 2 Explosive . | . . . . . Electromagnetic . | . . . . . Robot Hit Streak 5 | . 3 5 . 3 Robot Miss Streak 4 | . 3 4 . 1 Penetration Max . | . . . . . Secondary Targets 1 | . . 1 . . Max Gunslinging Chain 1 | . . 1 . . Shots Hit Robots 58 | . 4 50 . 4 Core Hits 31 | . 2 27 . 2 Critical Kills . | . . . . . Critical Parts Destroyed . | . . . . . Critical Strikes . | . . . . . Melee Attacks . | . . . . . Impact . | . . . . . Slashing . | . . . . . Piercing . | . . . . . Sneak Attacks . | . . . . . Combat Hostiles . | . . . . . Follow-up Attacks . | . . . . . Damage Inflicted 594 | . 37 522 . 35 Guns 593 | . 37 521 . 35 Cannons . | . . . . . Explosions . | . . . . . Melee . | . . . . . Ramming 1 | . . 1 . . Kinetic 220 | . 16 192 . 12 Thermal 373 | . 21 329 . 23 Explosive . | . . . . . Electromagnetic . | . . . . . Impact . | . . . . . Slashing . | . . . . . Piercing . | . . . . . Highest Corruption . | . . . . . Average Corruption . | . . . . . Corruption Purged . | . . . . . Corruption Blocked . | . . . . . Overload Shots . | . . . . . Overflow Damage . | . . . . . Projectiles . | . . . . . Explosions . | . . . . . Melee . | . . . . . Knockbacks . | . . . . . Impact . | . . . . . Kinetic . | . . . . . Secondary . | . . . . . Self-Inflicted Damage . | . . . . . Shots . | . . . . . Rammed 3 | . . 3 . . Targets Rammed 3 | . . 3 . . Kicked . | . . . . . Crushed . | . . . . . Highest Temperature 120 | . 20 120 . 20 Average Temperature 26 | . 12 28 . 13 Received Heat Transfer 80 | . . 80 . . Siege Activations . | . . . . . Robots Corrupted . | . . . . . Combat Hostiles . | . . . . . Parts Fried . | . . . . . Impact Corruptions . | . . . . . Robots Melted . | . . . . . Combat Hostiles . | . . . . . Parts Melted . | . . . . . Heat Transferred 850 | . 50 750 . 50 Parts Sabotaged . | . . . . . Parts Stolen . | . . . . . Parts Stripped . | . . . . . Power Chain Reactions . | . . . . . Missiles Intercepted . | . . . . . Alert | -11 -10 -10 -10 -9 ------- Run | Jun Mat Min Exi Min Peak Influence 38 | . 35 38 . . Initial 13 | . . 13 . . Average 12 | . 11 33 . . Maximum Alert Level . | . . . . . Low Security (%) 100 | 100 100 100 . 100 Level 1 . | . . . . . Level 2 . | . . . . . Level 3 . | . . . . . Level 4 . | . . . . . Level 5 . | . . . . . High Security . | . . . . . Max Security . | . . . . . Squads Dispatched 1 | . 1 . . . Investigation . | . . . . . Extermination . | . . . . . Reinforcement 1 | . 1 . . . Assault . | . . . . . Garrison . | . . . . . Intercept . | . . . . . Searches Triggered . | . . . . . Construction Impeded . | . . . . . Haulers Reinforced . | . . . . . Active Scanning Responses . | . . . . . Cargo Convoy Interrupts . | . . . . . Stealth | -11 -10 -10 -10 -9 --------- Run | Jun Mat Min Exi Min Distress Signals . | . . . . . Communications Jammed . | . . . . . Distress Signals . | . . . . . Times Spotted 22 | . 4 17 . 1 Peak Tracking Total 4 | . 1 4 . 1 Tactical Retreats 3 | . . 3 . . Traps | -11 -10 -10 -10 -9 ------- Run | Jun Mat Min Exi Min Traps Triggered . | . . . . . Indirectly . | . . . . . Trap Hack Attempts . | . . . . . Triggered . | . . . . . Disarmed . | . . . . . Reprogrammed . | . . . . . Reused . | . . . . . Traps Extracted . | . . . . . Installed . | . . . . . Triggered . | . . . . . Machines | -11 -10 -10 -10 -9 ---------- Run | Jun Mat Min Exi Min Machines Disabled . | . . . . . Max in Single Turn . | . . . . . Machines Repaired . | . . . . . Machines Sabotaged . | . . . . . Overloaded Fab Kills . | . . . . . Hacking | -11 -10 -10 -10 -9 --------- Run | Jun Mat Min Exi Min Machines Accessed 3 | . 1 . 1 1 Terminals 1 | . 1 . . . Fabricators . | . . . . . Repair Stations . | . . . . . Recycling Units . | . . . . . Scanalyzers . | . . . . . Garrison Access . | . . . . . Total Hacks 5 | . 3 . 1 1 Successful 3 | . 1 . 1 1 Failed 1 | . 1 . . . Catastrophic 1 | . 1 . . . Database Lockouts 1 | . 1 . . . Manual 4 | . 3 . 1 . Terminals 3 | . 3 . . . Fabricators . | . . . . . Repair Stations . | . . . . . Recycling Units . | . . . . . Scanalyzers . | . . . . . Garrison Access . | . . . . . Terminal Hacks 3 | . 1 . 1 1 Robot Analysis 1 | . 1 . . . Open Door 1 | . . . . 1 Derelict Proto ID Bank 1 | . . . 1 . Fabricator Hacks . | . . . . . Repair Station Hacks . | . . . . . Recycling Unit Hacks . | . . . . . Scanalyzer . | . . . . . Garrison Access Hacks . | . . . . . Unauthorized Hacks . | . . . . . Terminals . | . . . . . Fabricators . | . . . . . Repair Stations . | . . . . . Recycling Units . | . . . . . Scanalyzers . | . . . . . Garrison Access . | . . . . . Data Cores Recovered 1 | . 1 . . . Used . | . . . . . Hacking Detections 1 | . 1 . . . Full Trace Events . | . . . . . Feedback Events . | . . . . . Feedback Blocked . | . . . . . Robot Schematics Acquired . | . . . . . Robots Built . | . . . . . Authchips . | . . . . . Time . | . . . . . Total Robot Build Rating . | . . . . . Part Schematics Acquired . | . . . . . Parts Built . | . . . . . Authchips . | . . . . . Time . | . . . . . Total Part Build Rating . | . . . . . Parts Repaired . | . . . . . Time . | . . . . . Parts Recycled . | . . . . . Recycled Matter . | . . . . . Retrieved Matter . | . . . . . Retrieved Components . | . . . . . Parts Scanalyzed . | . . . . . Part Schematics Acquired . | . . . . . Parts Damaged . | . . . . . Bothacking | -11 -10 -10 -10 -9 ------------ Run | Jun Mat Min Exi Min Used RIF Installer . | . . . . . Robots Hacked . | . . . . . Non-combat . | . . . . . Combat . | . . . . . Robot Hacks Applied . | . . . . . Relay Couplers Released . | . . . . . Fabnet Peak Effective % . | . . . . . Robots Rewired . | . . . . . Allies Hacked . | . . . . . Hacks Repelled . | . . . . . Allies | -11 -10 -10 -10 -9 -------- Run | Jun Mat Min Exi Min Total Allies . | . . . . . Largest Group . | . . . . . Highest-Rated Group . | . . . . . Highest-Rated Ally . | . . . . . Total Orders . | . . . . . Ally Attacks . | . . . . . Total Damage . | . . . . . Kills . | . . . . . Allies Corrupted . | . . . . . Allies Melted . | . . . . . Intel | -11 -10 -10 -10 -9 ------- Run | Jun Mat Min Exi Min Robot Analysis Total 1 | . 1 . . . Derelict Logs Recovered 1 | . . . . 1 Drone Launches . | . . . . . Drone Recoveries . | . . . . . Exploration | -11 -10 -10 -10 -9 ------------- Run | Jun Mat Min Exi Min Turns Passed 2384 | 65 199 436 1071 613 Spaces Moved 1248 | 36 114 173 547 378 Core 2 | 2 . . . . Treads 1246 | 34 114 173 547 378 Legs . | . . . . . Wheels . | . . . . . Hover . | . . . . . Flight . | . . . . . Fastest Speed 50 | 50 160 160 160 160 Average Speed 174 | 153 160 160 193 160 Slowest Speed 320 | 160 160 160 320 160 Overloaded Moves . | . . . . . Propulsion Burnouts . | . . . . . Robots Hopped . | . . . . . Cave-ins Triggered . | . . . . . Exploration Rate (%) 40 | 5 29 27 69 71 Regions Visited 4 Branch Regions 3 Pre-discovered Areas 1 | . . . . 1 Known Exits Taken . | . . . . . Unknown Exits Taken 4 | 1 1 1 1 . Scrap Searched 1 | . . 1 . . Spaces Dug . | . . . . . Terrain Destroyed . | . . . . . Melee . | . . . . . Projectile . | . . . . . AOE . | . . . . . Terrain Rammed . | . . . . . Walls Destroyed . | . . . . . Machines Disabled . | . . . . . Actions | -11 -10 -10 -10 -9 --------- Run | Jun Mat Min Exi Min Total 1358 | 43 124 240 567 384 Wait 16 | . 5 11 . . Move 1244 | 35 113 172 546 378 Hop . | . . . . . Pick Up 16 | 2 2 1 10 1 Fast Attach 9 | 6 . 2 1 . Attach 2 | . . . 2 . Detach 2 | . . . 2 . Swap 1 | . . 1 . . Drop 8 | . . . 6 2 Fire 57 | . 4 50 . 3 Melee . | . . . . . Ram . | . . . . . Kick . | . . . . . Crush 3 | . . 3 . . Escape Stasis . | . . . . . Rewire . | . . . . . Trap . | . . . . . Miscellaneous . | . . . . . Route ------- -11/Junkyard -10/Materials -10/Mines (discovered 3 exits: [*Mat x2] / *Exi) -10/Exiles -9/Mines (discovered 2 exits: [*Mat x2]) History --------- Turn | Location | Event 10 | -11/Junkyard | Discovered new exit (range 14) 66 | -11/Junkyard | Entered Materials 89 | -10/Materials | Central database locked down 211 | -10/Materials | Discovered new exit (range 16) 265 | -10/Materials | Entered Mines 266 | -10/Mines | Assembled infested the area 271 | -10/Mines | Assisted by a Guerilla fighting off Assembled 278 | -10/Mines | Discovered new exit (range 15) 314 | -10/Mines | Build established: Mutant 381 | -10/Mines | Discovered new exit (range 5) 666 | -10/Mines | Core integrity fell below 50% 675 | -10/Mines | Core integrity fell below 20% 695 | -10/Mines | Deemed a non-threat by the Exiles lab entrance 695 | -10/Mines | Discovered new exit (range 5) 701 | -10/Mines | Entered Exiles 744 | -10/Exiles | Met 8R-AWN 804 | -10/Exiles | Met EX-HEX 850 | -10/Exiles | Met EX-BIN 873 | -10/Exiles | Met EX-DEC 991 | -10/Exiles | Aligned with FarCom system 993 | -10/Exiles | Given EX-Vault access code 1030 | -10/Exiles | Opened EX-Vault 1044 | -10/Exiles | Found Flying Fortress v7 1059 | -10/Exiles | Found Cloak of Protection 1067 | -10/Exiles | Found AWS/Thermal 1135 | -10/Exiles | Warned to stay clear of 0b10 Research branches 1755 | -10/Exiles | Discovered new exit (range 10) 1772 | -10/Exiles | Stole three prototypes: Flying Fortress v7, Cloak of Protection, AWS/Thermal 1772 | -10/Exiles | Entered Mines 1801 | -9/Mines | Discovered new exit (range 13) 1908 | -9/Mines | A weapon hastily lodged in a ceiling crevice suddenly fell to the ground 1939 | -9/Mines | Discovered new exit (range 5) 2021 | -9/Mines | Met a Derelict who couldn't figure out how to use a Trap Extractor 2228 | -9/Mines | Learned location of Storage (-8) 2347 | -9/Mines | Excavation squad dispatched 2347 | -9/Mines | A large section of the Mines collapsed 2385 | -9/Mines | Destroyed by as-80548 with Assembled Blade Last Messages --------------- something nasty happens..." 02021_ Tosses Imp. Trap Extractor to the ground. 02021_ 0M-UEA(g) triggered Proton Bomb Trap. 02021_ A bubble of electromagnetic force engulfs the area. 02021_ Explosive Trap short circuited. 02021_ SHOP.Sys disabled. 02021_ Machine disabled. 02021_ An explosion rips through the floor. 02028_ Acquired Corrupted Imp. Trap Extractor. 02169_ K-01 Serf collects debris. 02228_ Acquired derelict log, extracted data. World map updated: -8/Storage. 02347_ ALERT: Suspicious cave-in, suspected derelict activity in mines. Dispatching escorted excavation squad. 02347_ T-07 Excavator is excavating. 02369_ Dropped Rigged Nuclear Core. 02374_ Dropped Rigged Fission Core. 02383_ Lgt. Treads destroyed. 02383_ Sml. Laser destroyed. 02383_ Lgt. Ion Engine destroyed. Map ----- +----------------------------------------------------+ | ??????????# ##### ##?????# #???????? | | ??????# ##### ##???# #??????# #???????? | | ??????## ##???####????# ######## #???????? | | ???????# #####????????????# #???????? | | ??????# #???????????####### ##########???????? | | ??????# ???????????## ## ##???????????????? | | ??????# ?????####### ##??????????????? | | ??????## ??????# #??????????????? | | ???????# ???????# #??????????????? | | ??????? ????????# ######## #?????????????? | | ????????????????# #??????## #????????????? | | ????????????????# #???????### #????????????? | | ????????????????# #########?### ##????????????? | | ????????????????# #????###?????????????? | | ????????????????# #????????????????????? | | ????????????????######### #????????????????????? | | ????????????????????????# #????????????????????? | | ????????????????????????# #????????????????????? | | ??????????????????????### #????????????????????? | | ?????????????????????## * #????????????????????? | | ?????????????????????# #????????????????????? | | ?????????????????????# ##?????????###????????? | | ?????????????????????# * #?????????# ##???????? | | ?????????????????????## ##???????# ##??????? | | ??????????????????????## ##????## #??????? | | ??????????????????????## @ ###### #??????? | | ?????????############## a #???????? | | ?????????# # ##???????? | | ?????????# # ##????????? | | ?????????# ######### ##?????????? | | ????????# ##???????# ## #??????????? | | ????????# ?????????# ####t ##??????????? | | #??????# ?????????## ##??# #???????????? | | ????? ??????????#### ##???## ##??????????? | | ???? ?????????????# #?????## #??????????? | | #???### ?????????????# #??????# #??????????? | | #?????##??????????????# #??????# #??????????? | | ##???????????????######u#??????# ##??????????? | | ################# #??????# ##??????????? | | # ######??????# #??????????? | | #??????###### #??????????? | | ###############?????## #??????????? | | #???????????????????# ##??????????? | | """ ##???????????????????# #####???????????? | | """ ##????????????????????## ##???????????????? | | """ #??????????????????????###?????????????????? | | #??????????????????????????????????????????? | | ##??????????????????????????????????????????? | | #####???????????????????????????????????????????? | | #???????????????????????????????????????????????? | +----------------------------------------------------+ Best States ------------- Heat Dissipation 25 Energy Generation 10 Energy Capacity 125 Matter Stores 300 Matter Capacity 300 Sight Range 16 Terrain Scan Density 10 Evasion (%) 40 Recoil Reduction 2 Item Schematics ----------------- None Robot Schematics ------------------ None Fabricated ------------ Nothing Alien Tech Used ----------------- None Achievements -------------- None Challenges ------------ None Game ------ Seed MolecularAssaultDesublimator Manual? 0 Play Time 00:12:35 Cumulative 475.3 hours Start 2023.11.14 @ 19:18:35 End 2023.11.14 @ 19:33:41 Sessions 1 Manual Loads 0 Difficulty Rogue Special Mode None Game No. 561 Rogue 474 Adventurer 87 Explorer 0 Win Type - Total 27 Types 8/0/15/1/1/0/2/0/0 Lore% 90 Gallery% 93 Achievement% 76 Wizard Run 0 Options --------- ASCII 0 Keyboard 1 Movement Numpad Keybinds 0 Fullscreen 1 Font 18/SmallcapsGlow Map View 76x50 Tactical HUD 1 Map Filters NONE Filters NONE Steam 1 RUN: 2810e844-2da7-47f3-8240-8bc5d75b069d